Cogmind - Beta 16 @@@ ROGUE MODE // 2025.11.28 @ 23:46:16 Player: omewwes Result: Destroyed by C-57 Dissector with Dual-blade Saw Performance ------------- Evolutions (8) 4000 Regions Visited (27) 5400 Robots Destroyed (303) 1515 Value Destroyed (17550) 17550 Prototype IDs (15) 300 Alien Tech Used (5) 1000 Bonus (19812) 19812 TOTAL SCORE: 49577 Bonus ------- High Alert Combat Kills 3279 Follower Combat Kills 5701 Entered Garrisons 2000 Used RIF Installer 6000 Used Core Reset Matrix 3000 Friendly Fire -168 Cogmind --------- Core Integrity 0/1450 Matter 116/300 Energy 99/100 System Corruption 2% +Membrane Temperature Cool (0) Movement Core (50) Location -2/Section 7 Parts ------- > --- POWER (1) -------- (None) > --- PROPULSION (6) --- (None) > --- UTILITY (13) ----- (None) > --- WEAPON (3) ------- (None) > --- INVENTORY (5) ---- Advanced Heat Sink Advanced Coolant Injector Improved Utility Shielding Layered Medium Armor Plating Advanced Remote Datajack Peak State ------------ > --- POWER ------------ Matter Drive > --- PROPULSION ------- Diametric Drive Diametric Drive Diametric Drive Diametric Drive Diametric Drive Cooled Q-thruster > --- UTILITY ---------- Advanced Power Amplifier Advanced Sensor Array Advanced Signal Interpreter Improved Targeting Computer Improved Targeting Computer Experimental Core Analyzer Advanced ECM Suite Layered Medium Armor Plating Phase Redirector Relay Coupler [Swarmer] Relay Coupler [Sentry] Relay Coupler [Sentry] Relay Coupler [Specialist] > --- WEAPON ----------- Nanosword Lance Lance > --- INVENTORY -------- Light Quantum Reactor Improved Particle Charger Layered Medium Armor Plating Advanced Component Analysis Suite Enhanced Nova Cannon [Rating: 158] Favorites ----------- Power Reinforced Quantum Reactor Engine Reinforced Deuterium Engine Power Core Reinforced Fission Core Reactor Reinforced Quantum Reactor Propulsion Compact Wheel Treads Light Treads Leg Aluminum Leg Wheel Compact Wheel Hover Unit Combat Airjet Flight Unit Diametric Drive Utility Relay Coupler [Sentry] Device Improved Kinecellerator Storage Cargo Storage Unit Processor Improved Targeting Computer Hackware Relay Coupler [Sentry] Protection Improved Medium Armor Plating Artifact Phase Redirector Weapon Force Lance Energy Gun Quantum Rifle Energy Cannon Enhanced Nova Cannon Ballistic Gun Improved Heavy Machine Gun Ballistic Cannon Linear Accelerator Launcher Improved Proton Missile Launcher Special Weapon Improved Remote Datajack Impact Weapon Heavy Hammer Slashing Weapon Scythe Piercing Weapon Force Lance Build | -11 -10 -10 -9 -9 -8 -8 -7 -7 -7 -7 -6 -6 -6 -6 -5 -5 -4 -4 -4 -4 -3 -3 -3 -3 -2 -2 -2 ------- Run | Yrd Mat Min Mat Min Mat Gar Fac Gar Fac Gar Fac Gar Fac Gar Fac Gar Fac Gar Fac Gar Res Gar Res Gar Res Qua Sec Slots Evolved 16 | . . . 2 . 2 . 2 . . . 2 . . . 2 . 2 . . . 2 . . . 2 . . Power . | . . . . . . . . . . . . . . . . . . . . . . . . . . . . Propulsion 4 | . . . 1 . . . . . . . . . . . . . 1 . . . . . . . 2 . . Utility 11 | . . . . . 2 . 2 . . . 2 . . . 2 . 1 . . . 2 . . . . . . Weapon 1 | . . . 1 . . . . . . . . . . . . . . . . . . . . . . . . Parts Attached 381 | 7 4 . 7 4 54 8 6 30 2 9 8 35 5 10 33 31 9 16 3 24 5 24 8 3 24 11 1 Power 34 | 1 . . 1 . 4 . . 3 1 1 1 4 . . 3 4 2 3 . . . . 1 1 2 2 . Engine 16 | 1 . . 1 . 3 . . 2 1 1 . 2 . . 3 2 . . . . . . . . . . . Core 7 | . . . . . 1 . . 1 . . 1 . . . . 2 2 . . . . . . . . . . Reactor 11 | . . . . . . . . . . . . 2 . . . . . 3 . . . . 1 1 2 2 . Propulsion 97 | 2 2 . 3 2 14 5 2 8 . 5 1 12 . 1 6 6 4 2 1 3 1 8 1 . 8 . . Treads 44 | . . . . . 14 . . 5 . 5 1 3 . . . 3 . 1 . 2 1 8 1 . . . . Leg 28 | 2 2 . 3 . . 5 2 1 . . . 8 . 1 2 1 . 1 . . . . . . . . . Wheel 14 | . . . . . . . . 2 . . . 1 . . 3 2 4 . 1 1 . . . . . . . Hover 3 | . . . . 2 . . . . . . . . . . 1 . . . . . . . . . . . . Flight 8 | . . . . . . . . . . . . . . . . . . . . . . . . . 8 . . Utility 169 | 2 . . 2 . 18 2 3 13 1 1 4 14 2 7 17 15 3 10 1 16 4 13 2 1 11 7 . Device 45 | 1 . . . . 7 1 . 7 . . 2 3 1 2 8 1 . . . 4 1 1 . . 3 3 . Storage 7 | 1 . . . . 1 . . 1 . . . . 1 . 2 1 . . . . . . . . . . . Processor 16 | . . . . . 3 . . 1 1 1 1 . . . 1 . . . . . . . . . 6 2 . Hackware 60 | . . . . . 3 . 2 . . . 1 6 . 2 2 6 2 10 . 9 3 11 2 1 . . . Protection 40 | . . . 2 . 4 1 1 4 . . . 5 . 3 4 7 1 . 1 3 . 1 . . 2 1 . Artifact 1 | . . . . . . . . . . . . . . . . . . . . . . . . . . 1 . Weapon 81 | 2 2 . 1 2 18 1 1 6 . 2 2 5 3 2 7 6 . 1 1 5 . 3 4 1 3 2 1 Energy Gun 9 | 2 . . . . 4 . . 1 . 1 . 1 . . . . . . . . . . . . . . . Energy Cannon 3 | . . . . . . . . . . . . 2 . . . . . . . 1 . . . . . . . Ballistic Gun 22 | . . . . . 11 . . 3 . . . . 3 1 4 . . . . . . . . . . . . Ballistic Cannon 13 | . . . . . . . . 1 . 1 1 1 . . 1 2 . 1 . 1 . 2 2 . . . . Launcher 4 | . . . . 1 . 1 . . . . . 1 . . . . . . . 1 . . . . . . . Special Weapon 13 | . . . . . . . . 1 . . 1 . . 1 . 2 . . 1 2 . 1 1 1 1 . 1 Impact Weapon 6 | . 2 . 1 1 1 . 1 . . . . . . . . . . . . . . . . . . . . Slashing Weapon 5 | . . . . . 2 . . . . . . . . . 2 . . . . . . . . . . 1 . Piercing Weapon 6 | . . . . . . . . . . . . . . . . 2 . . . . . . 1 . 2 1 . Special Melee Weapon . | . . . . . . . . . . . . . . . . . . . . . . . . . . . . Unidentified Prototypes 13 | . . . . . 2 . . 1 . . . . 1 . 2 . . . . . . . . . 2 5 . Parts Lost 114 | . 1 . . 1 14 3 . 8 . 5 1 4 . 9 5 12 1 4 . 2 . 8 3 22 1 2 8 Power 11 | . . . . . 3 . . 1 . 1 . . . . 1 1 1 . . . . . . 2 . . 1 Propulsion 28 | . . . . . 5 1 . 2 . 1 . . . 2 1 4 . 1 . 1 . 1 . 3 . 2 4 Utility 53 | . 1 . . 1 3 1 . 5 . 1 1 2 . 4 3 5 . 3 . 1 . 6 . 12 1 . 3 Weapon 22 | . . . . . 3 1 . . . 2 . 2 . 3 . 2 . . . . . 1 3 5 . . . Highest Loss Streak 22 | . 1 . . 1 6 2 . 8 . 3 1 3 . 7 4 3 1 2 . 1 . 2 1 22 1 2 8 To Critical Strikes . | . . . . . . . . . . . . . . . . . . . . . . . . . . . . Average Backups 18 | . 7 8 6 7 7 4 4 10 20 22 18 18 5 11 6 19 29 28 30 29 29 28 24 22 4 4 5 Power . | . 1 1 . 1 . . . . . . . . 1 . . 1 1 . 1 1 1 1 1 . . . . Propulsion 1 | . . 1 1 . 1 1 1 2 4 5 6 4 . . . . . 1 1 . . 1 2 2 . . . Utility 12 | . 3 4 2 4 3 2 2 5 10 12 7 11 3 10 3 14 22 23 25 25 26 22 18 16 2 3 4 Weapon 1 | . 2 2 1 1 3 . 1 2 4 3 4 1 1 . 1 1 3 1 1 . . 2 1 1 . . . Tool/Special . | . . . . . . . . . . . . . . . . . . . . . . . . . . . . Unused Backups 95 | . . . 2 1 14 . . 3 . 5 4 17 . 8 2 4 . 6 . 8 . 6 . 8 1 1 5 Power 6 | . . . 2 . . . . . . . . . . 1 . 2 . 1 . . . . . . . . . Propulsion 16 | . . . . . 2 . . 2 . 2 2 5 . . . . . . . . . 2 . . 1 . . Utility 59 | . . . . . 6 . . . . 3 1 12 . 7 . 2 . 3 . 8 . 4 . 8 . . 5 Weapon 13 | . . . . 1 6 . . 1 . . 1 . . . 1 . . 2 . . . . . . . 1 . Tool/Special 1 | . . . . . . . . . . . . . . . 1 . . . . . . . . . . . . Average Slot Usage (%) 84 | . 94 85 99 95 95 91 89 86 76 72 79 82 97 93 67 81 89 89 89 86 82 80 84 78 66 88 47 Engine 3 | . 14 14 11 8 7 9 7 6 7 7 1 3 . . 2 1 1 . . . . . . . . . . Reactor 1 | . . . . . . . . . . . . . 6 5 . . . 3 5 5 4 4 4 3 2 4 1 Treads 8 | . . . . . 23 11 . 16 15 13 13 9 . . . 1 10 3 5 4 2 9 9 7 . . . Leg 3 | . 28 28 33 26 . 14 23 1 . . . 4 20 19 1 . . . . . . . . . . . . Wheel 3 | . . . . . . . . . . . . . . . 7 8 9 13 10 10 8 1 . . . . . Device 7 | . 8 . . . 11 24 22 15 15 8 12 10 17 7 14 3 3 . . 4 8 3 . . 1 9 5 Storage 5 | . 14 14 11 11 7 . . 3 7 7 6 4 1 5 2 5 5 5 5 5 4 4 4 3 . . . Processor 4 | . . . . . 8 9 7 5 7 13 13 6 . . 4 5 5 . . . . . . . 7 19 17 Hackware 21 | . . . . . 6 . 11 7 7 7 13 10 26 26 7 22 24 37 43 35 33 38 51 50 36 15 . Protection 4 | . . . 10 10 1 2 . 7 . . . 13 6 5 7 7 10 7 3 4 4 2 . . 2 4 2 Ballistic Gun 4 | . . . . . 16 . . 10 . . . . 13 19 10 10 . . . . . . . . . . . Ballistic Cannon 3 | . . . . . . . . 2 7 7 6 5 1 . . . 5 4 5 4 . 7 7 4 . . . Special Weapon 2 | . . . . . . . . 1 7 4 4 2 . . . 1 4 5 5 5 4 3 3 3 2 . . Impact Weapon 2 | . 26 28 32 32 3 9 8 3 . . . . . . . . . . . . . . . . . . . Piercing Weapon 1 | . . . . . . . . . . . . . . . . 3 5 5 5 4 4 1 1 1 1 5 2 Peak Build Rating 158 | 7 10 9 14 22 39 37 38 74 73 73 79 89 89 83 68 80 85 109 109 111 120 122 119 119 135 158 104 Average Rating 72 | 5 9 9 13 15 30 31 34 57 72 66 74 76 83 80 46 67 80 94 104 102 115 106 116 105 86 130 67 On Entrance 62 | . 7 9 9 14 18 35 29 38 71 73 72 73 89 79 1 68 76 79 109 103 99 112 116 111 36 135 96 Avg Prop Armor Cover (%) 9 | . . . . 6 5 11 . 5 . . . 6 . . 11 3 13 12 15 10 12 14 . . 3 1 10 Naked Turns 24 | . . . . . . . . . . . . . . 11 . . . . . . . . . . . . 13 Heaviest Build 220 | 15 17 16 26 26 53 47 32 186 179 181 182 207 66 69 62 207 191 200 201 220 209 214 200 184 34 40 26 Greatest Support 145 | 20 20 20 30 30 60 60 35 105 105 105 95 95 73 78 42 69 69 58 32 93 60 145 145 145 44 45 28 Greatest Overweight (x) 66 | . . . . 1 1 1 . 2 1 2 1 6 . 2 2 66 11 6 7 13 7 12 1 2 . 11 . Average Overweight (x) 1 | . . . . . . . . . 1 1 1 1 . . . 6 5 4 6 5 4 2 1 . . . . Largest Inventory Capacity 30 | 8 8 8 8 8 10 5 5 30 30 30 30 30 15 15 15 30 30 30 30 30 30 30 30 30 5 5 5 Average Capacity 21 | 7 8 8 8 8 8 5 5 16 30 30 30 23 8 14 9 27 30 30 30 30 30 30 30 27 5 5 5 Most Carried 30 | 1 8 8 8 8 10 5 5 29 29 30 29 30 6 15 15 30 30 30 30 30 30 30 30 28 5 5 5 Average Carried 19 | . 7 8 6 7 7 4 4 13 27 28 26 22 5 14 8 21 29 28 29 29 29 28 26 25 4 4 4 Final Capacity 30 | 8 8 8 8 8 5 5 5 30 30 30 30 5 15 5 15 30 30 30 30 30 30 30 30 5 5 5 5 Final Carried 30 | 1 8 8 8 7 4 5 5 26 29 28 29 5 6 5 15 30 28 30 30 30 27 29 27 5 5 5 5 Class Distribution -------------------- 29% | Botlord-Mutant 12% | Botlord-Tank 11% | Hauler-Gunner 8% | Scavenger-Gunner 7% | Mutant 5% | Botlord-Gunner 4% | Gladiator 4% | Hauler-Tank Dominant Class ---------------- Mutant | -10/Materials Mutant | -10/Mines Mutant | -9/Materials Mutant | -9/Mines Scavenger-Gunner | -8/Materials Gladiator | -8/Garrison Scavenger-Gladiator | -7/Factory Hauler-Gunner | -7/Garrison Hauler-Gunner | -7/Factory Hauler-Gunner | -7/Garrison Hauler-Gunner | -6/Factory Hauler-Tank | -6/Garrison Tank | -6/Factory Botlord-Tank | -6/Garrison Scavenger-Gunner | -5/Factory Botlord-Gunner | -5/Garrison Botlord-Mutant | -4/Factory Botlord-Mutant | -4/Garrison Botlord-Mutant | -4/Factory Botlord-Mutant | -4/Garrison Botlord-Mutant | -3/Research Botlord-Tank | -3/Garrison Botlord-Tank | -3/Research Botlord-Mutant | -3/Garrison Botlord-Mutant | -2/Research Sprinter | -2/Quarantine Sprinter | -2/Section 7 Resources | -11 -10 -10 -9 -9 -8 -8 -7 -7 -7 -7 -6 -6 -6 -6 -5 -5 -4 -4 -4 -4 -3 -3 -3 -3 -2 -2 -2 ----------- Run | Yrd Mat Min Mat Min Mat Gar Fac Gar Fac Gar Fac Gar Fac Gar Fac Gar Fac Gar Fac Gar Res Gar Res Gar Res Qua Sec Matter Collected 13613 | 247 73 . 90 44 1577 113 60 1014 156 1098 300 1012 319 949 1024 1332 175 674 86 694 . 1156 635 320 286 179 . Remotely . | . . . . . . . . . . . . . . . . . . . . . . . . . . . . Salvage Created 15944 | 88 406 . 697 103 2298 551 365 2023 169 1468 148 452 138 1116 1227 1743 252 196 78 542 . 1170 253 117 70 179 95 Parts 673 | 6 11 . 21 . 113 33 17 71 6 65 8 21 3 51 45 68 12 9 7 27 . 41 10 8 5 7 8 Haulers Intercepted 9 | . . . 2 . 5 . . . . . . . 1 . 1 . . . . . . . . . . . . Recyclers Shooed 2 | . . . 1 . . . . . . . . . . . . . . . . . . . 1 . . . . Parts Field Recycled . | . . . . . . . . . . . . . . . . . . . . . . . . . . . . Retrieved Matter . | . . . . . . . . . . . . . . . . . . . . . . . . . . . . Parts Self-Destructed . | . . . . . . . . . . . . . . . . . . . . . . . . . . . . Prevented . | . . . . . . . . . . . . . . . . . . . . . . . . . . . . Parts Restored . | . . . . . . . . . . . . . . . . . . . . . . . . . . . . Kills | -11 -10 -10 -9 -9 -8 -8 -7 -7 -7 -7 -6 -6 -6 -6 -5 -5 -4 -4 -4 -4 -3 -3 -3 -3 -2 -2 -2 ------- Run | Yrd Mat Min Mat Min Mat Gar Fac Gar Fac Gar Fac Gar Fac Gar Fac Gar Fac Gar Fac Gar Res Gar Res Gar Res Qua Sec Combat Hostiles Destroyed 245 | . 7 . 11 3 42 15 5 24 4 29 3 13 1 19 11 19 2 6 1 9 . 11 7 2 . . 1 Melee 56 | . 4 . 8 3 4 12 5 7 . . . . . . 3 1 2 1 1 1 . 2 . 1 . . 1 Guns 86 | . . . . . 31 . . 10 . . . . . 19 8 18 . . . . . . . . . . . Cannons 81 | . . . . . . . . 6 4 29 3 10 1 . . . . 5 . 8 . 8 6 1 . . . AOE 8 | . . . . . 1 3 . . . . . 3 . . . . . . . . . . 1 . . . . Classes Destroyed 22 | 2 2 . 6 1 3 1 1 1 . . 2 . . . . . . . 1 2 . . . . . . . Worker 14 | . 2 . 1 2 1 . . . . . . . . . 2 . 2 . . . . . 1 . 3 . . Builder 4 | . . . . . 3 . . . . . . . . . 1 . . . . . . . . . . . . Tunneler 5 | 1 1 . . . 2 . . . . . . . . . 1 . . . . . . . . . . . . Hauler 9 | . . . 2 . 5 . . . . . . . 1 . 1 . . . . . . . . . . . . Recycler 15 | 1 2 . 2 . 3 . 1 . . . . . . . 4 . 1 . . . . . . . . 1 . Mechanic 1 | . . . . . . . . . . . . . . . . . . . 1 . . . . . . . . Operator 6 | . . . 1 . 1 . 1 . . . . . . . . . . . . . . . . . 1 1 1 Watcher 3 | . . . 1 . . . . . . . . . . . . 1 . . . 1 . . . . . . . Swarmer 50 | . . . 3 . 6 4 . 9 . 7 . 5 . 3 . 7 2 2 . 1 . 1 . . . . . Cutter 3 | . . . . . . . . . . . . . . . . . . . . 3 . . . . . . . Saboteur 1 | . . . . . . . . . . . . . . . . . . . . 1 . . . . . . . Grunt 95 | . 7 . 4 . 22 6 4 6 3 11 . 4 1 7 4 3 . 2 1 2 . 8 . . . . . Brawler 5 | . . . 1 . 2 . . . . 1 . 1 . . . . . . . . . . . . . . . Duelist 2 | . . . . . . . 1 . . . . . . 1 . . . . . . . . . . . . . Sentry 39 | . . . 3 . 9 . . 5 1 5 1 1 . 4 1 8 . . . 1 . . . . . . . Demolisher 1 | . . . . . . . . . . . 1 . . . . . . . . . . . . . . . . Specialist 3 | . . . . . . . . . . . . 2 . . . . . . . . . 1 . . . . . Hunter 12 | . . . . . 2 2 . . . 1 1 . . 1 4 1 . . . . . . . . . . . Programmer 30 | . . . . . . 3 . 3 . 4 . 1 . 3 2 2 . 1 . 1 . . 7 2 . . 1 Heavy 1 | . . . . . 1 . . . . . . . . . . . . . . . . . . . . . . Behemoth 3 | . . . . . . . . 1 . . . . . . . . . 1 . . . 1 . . . . . Assembled 3 | . . . . 3 . . . . . . . . . . . . . . . . . . . . . . . Infiltrator 1 | . . . . . . . . . . . 1 . . . . . . . . . . . . . . . . Best Kill Streak 9 | 1 6 . 6 2 7 7 7 9 3 8 1 4 1 6 8 6 1 1 1 6 . 3 4 1 3 4 2 Combat Bots Only 9 | . 3 . 4 1 6 7 5 9 3 8 1 4 1 6 5 6 1 1 1 6 . 3 3 1 . . 1 Max Kills in Single Turn 2 | 1 1 . 1 1 2 2 1 2 1 1 1 2 1 2 1 1 1 1 1 1 . 1 2 1 1 1 1 Gunslinging 1 | . . . . . . . . 1 . . . . . 1 . . . . . . . . . . . . . Exploded 2 | . . . . . 1 2 . . . . . 2 . . . . . . . . . . 1 . . . . Melee 1 | . 1 . 1 1 1 1 1 1 . . . . . . 1 1 1 1 1 1 . 1 . 1 . . 1 Uniques/NPCs Destroyed . | . . . . . . . . . . . . . . . . . . . . . . . . . . . . Combat | -11 -10 -10 -9 -9 -8 -8 -7 -7 -7 -7 -6 -6 -6 -6 -5 -5 -4 -4 -4 -4 -3 -3 -3 -3 -2 -2 -2 -------- Run | Yrd Mat Min Mat Min Mat Gar Fac Gar Fac Gar Fac Gar Fac Gar Fac Gar Fac Gar Fac Gar Res Gar Res Gar Res Qua Sec Hostile Shots Fired 2710 | . 36 . 51 29 186 94 9 265 28 223 63 120 17 388 121 260 18 61 . 77 4 190 83 152 103 31 101 Missed 865 | . 8 . 15 6 50 26 5 74 12 75 23 33 11 143 29 58 6 19 . 17 . 51 33 48 61 10 52 Hits 1845 | . 28 . 36 23 136 68 4 191 16 148 40 87 6 245 92 202 12 42 . 60 4 139 50 104 42 21 49 Melee 53 | . . . 3 10 . . 1 . . . . 3 . 4 . . . . . 4 . . 4 . . . 24 Projectile 1792 | . 28 . 33 13 136 68 3 191 16 148 40 84 6 241 92 202 12 42 . 56 4 139 46 104 42 21 25 AOE 9 | . . . . . . . . . . . 2 . . . . . . . . . . . 5 . . . 2 Critical Strikes 71 | . 1 . 2 1 5 . . 3 . 3 1 5 . 6 3 4 . 2 . 5 . 6 2 10 2 1 9 Actively Blocked 1 | . . . . . . . . . . . . . . . . . . . . . . . . . . . 1 Part Disruptions 2 | . . . . . . 1 . . . . . . . . . . . . . . . . 1 . . . . Damage Taken 30965 | . 329 . 462 423 2409 908 78 2497 172 1108 622 1507 101 3083 1390 2994 196 1215 . 1253 141 3140 1556 2406 880 585 1510 Core 5674 | . 67 . 49 99 320 91 . 435 11 120 92 42 . 699 465 332 13 129 . 72 42 311 240 672 141 178 1054 Absorbed by Shields 2249 | . . . . . . . . 15 . 419 . 97 . 676 . 442 . 93 . 290 . 147 70 . . . . Reduced by Siege Mode 45 | . . . . . . . . . . . . 45 . . . . . . . . . . . . . . . Redirected to Shielding 178 | . . . . . . . . . . . . . . . 65 11 . . . . . . . . . . 102 Ignored by Resistances 611 | . . . . . . . . 361 . . . . . . . 250 . . . . . . . . . . . Core Remaining (%) 42 | 100 . 73 . 63 . 25 . . . 19 . . . 2 . 20 . . . 81 . . . 2 . . . Volleys Fired 947 | 11 . . . 1 100 2 . 58 9 98 20 82 12 82 41 70 10 65 8 52 14 111 67 19 15 . . Largest 3 | 2 . . . 1 3 1 . 3 1 1 1 2 3 3 3 3 1 1 1 1 1 2 2 2 1 . . Hottest 195 | 90 . . . 33 195 36 . 83 65 94 65 146 84 89 45 45 7 58 7 120 7 120 108 108 10 . . Shots Fired 1636 | 22 . . . 1 294 2 . 141 8 99 20 83 26 235 127 179 10 65 8 52 14 128 86 21 15 . . Gun 1010 | 22 . . . . 294 . . 126 . 21 . 4 21 232 127 163 . . . . . . . . . . . Cannon 340 | . . . . . . . . 15 8 78 15 44 5 . . 1 . 34 . 28 . 69 40 3 . . . Launcher 6 | . . . . 1 . 2 . . . . . 3 . . . . . . . . . . . . . . . Special 280 | . . . . . . . . . . . 5 32 . 3 . 15 10 31 8 24 14 59 46 18 15 . . Kinetic 1206 | . . . . . 236 . . 141 8 78 15 36 26 232 127 164 . 34 . 27 . 39 40 3 . . . Thermal 125 | 11 . . . . 58 . . . . 21 . 4 . . . . . . . 1 . 30 . . . . . Explosive 2 | . . . . . . 2 . . . . . . . . . . . . . . . . . . . . . Electromagnetic 23 | 11 . . . 1 . . . . . . . 11 . . . . . . . . . . . . . . . Robot Hit Streak 47 | 4 . . . . 19 4 . 42 5 17 7 9 13 47 11 12 11 11 7 19 7 14 16 13 6 . . Robot Miss Streak 6 | 3 . . . 1 6 . . 1 1 3 2 2 1 2 5 4 3 3 1 6 1 5 3 2 3 . . Penetration Max 1 | . . . . . . . . 1 . 1 . 1 . 1 . . . . . . . . . . . . . Secondary Targets 17 | . . . . . 4 . . 3 . . . . . 5 1 4 . . . . . . . . . . . Max Gunslinging Chain 1 | . . . . . 1 . . 1 . . . . . 1 1 1 . . . . . . . . . . . Shots Hit Robots 1531 | 13 21 . 38 6 248 31 11 185 6 79 14 58 20 184 97 167 18 52 9 47 13 111 61 18 15 5 4 Core Hits 544 | 3 5 . 11 3 131 17 6 71 4 40 7 15 5 56 38 57 4 9 2 16 . 24 13 1 3 1 2 Critical Kills 9 | . . . 2 1 4 . . 1 . . . . . . 1 . . . . . . . . . . . . Critical Parts Destroyed 19 | . 1 . 5 1 6 . . 6 . . . . . . . . . . . . . . . . . . . Critical Strikes 79 | 1 1 . 7 2 10 5 . 18 1 9 . 4 . . 2 2 . 3 . 4 . 8 2 . . . . Burn 1 | 1 . . . . . . . . . . . . . . . . . . . . . . . . . . . Destroy 7 | . . . . . 4 . . 2 . . . . . . 1 . . . . . . . . . . . . Blast 29 | . . . . . . . . 4 1 9 . 4 . . . . . 2 . 1 . 6 2 . . . . Smash 21 | . 1 . 7 2 6 . . 5 . . . . . . . . . . . . . . . . . . . Sever 15 | . . . . . . 5 . 7 . . . . . . 1 2 . . . . . . . . . . . Impale 6 | . . . . . . . . . . . . . . . . . . 1 . 3 . 2 . . . . . Melee Attacks 468 | . 29 . 56 10 41 42 14 83 . . . . . . 25 59 19 13 2 19 . 21 5 5 7 12 6 Impact 175 | . 29 . 56 10 39 7 4 30 . . . . . . . . . . . . . . . . . . . Slashing 180 | . . . . . 2 35 10 53 . . . . . . 25 43 . . . . . . . . . 7 5 Piercing 113 | . . . . . . . . . . . . . . . . 16 19 13 2 19 . 21 5 5 7 5 1 Sneak Attacks 52 | . 6 . 8 2 2 . 2 . . . . . . . 1 2 7 4 2 5 . 1 2 . 6 2 . Combat Hostiles 1 | . . . . . . . . . . . . . . . . . . 1 . . . . . . . . . Follow-up Attacks 73 | . 4 . 13 3 7 11 3 26 . . . . . . 4 2 . . . . . . . . . . . Damage Inflicted 48701 | 169 1199 . 1554 450 4828 1287 501 6710 458 5612 772 2307 490 3727 2371 5573 734 1275 173 1639 . 3749 1686 137 566 414 320 Guns 14920 | 169 . . . . 3772 . . 2328 . 578 . 39 307 3706 1733 2288 . . . . . . . . . . . Cannons 14799 | . . . . . . . . 1168 458 5034 730 2028 183 . . . . 942 . 805 . 2119 1234 98 . . . Explosions 892 | . . . . 7 . 287 . . . . 42 240 . . . . . . . . . . 316 . . . . Melee 18069 | . 1199 . 1554 443 1056 1000 501 3214 . . . . . . 638 3285 734 333 173 834 . 1630 136 39 566 414 320 Ramming 21 | . . . . . . . . . . . . . . 21 . . . . . . . . . . . . . Kinetic 27095 | . . . . . 3032 . . 3496 458 5034 730 2000 490 3706 1733 2288 . 942 . 805 . 1049 1234 98 . . . Thermal 2541 | 88 . . . . 740 . . . . 578 . 65 . . . . . . . . . 1070 . . . . . Explosive 603 | . . . . . . 287 . . . . . . . . . . . . . . . . 316 . . . . Electromagnetic 372 | 81 . . . 7 . . . . . . 42 242 . . . . . . . . . . . . . . . Impact 6023 | . 1199 . 1554 443 1056 187 177 1407 . . . . . . . . . . . . . . . . . . . Slashing 6883 | . . . . . . 813 324 1807 . . . . . . 638 2749 . . . . . . . . . 232 320 Piercing 5163 | . . . . . . . . . . . . . . . . 536 734 333 173 834 . 1630 136 39 566 182 . Highest Corruption 29 | . . . . . . 2 . 4 4 5 2 2 2 5 6 6 . . . 1 . . 6 29 . 2 2 Average Corruption 4 | . . . . . . 1 . 3 4 4 2 2 2 3 5 6 . . . 1 . . 3 10 . 1 2 Corruption Purged 1 | . . . . . . . . . . . . . . . . . . . . 1 . . . . . . . Corruption Blocked . | . . . . . . . . . . . . . . . . . . . . . . . . . . . . Effects 236 | . . . . . . 5 . 10 9 37 1 24 6 27 22 63 . . . 1 . . 18 10 . . 3 Message Errors 59 | . . . . . . 1 . 1 2 10 . 5 3 11 7 12 . . . . . . 4 3 . . . Matter Fused 59 | . . . . . . 1 . 4 1 11 1 4 . 5 5 17 . . . . . . 7 1 . . 2 Heat Flow Errors 29 | . . . . . . 2 . . 1 6 . 2 . 1 1 12 . . . . . . 3 1 . . . Energy Discharges 28 | . . . . . . . . 2 . 2 . 5 2 5 1 7 . . . . . . 2 1 . . 1 Parts Rejected 3 | . . . . . . . . 1 1 . . 1 . . . . . . . . . . . . . . . Parts Fused 4 | . . . . . . . . . . 1 . 1 . 1 . . . . . 1 . . . . . . . Data Loss (minor) 27 | . . . . . . . . . 3 4 . 3 1 2 3 8 . . . . . . 2 1 . . . Data Loss (major) 11 | . . . . . . . . 1 . 2 . 2 . 2 1 3 . . . . . . . . . . . Misfires 7 | . . . . . . . . . . 1 . . . . 4 1 . . . . . . . 1 . . . Alerts 4 | . . . . . . 1 . . . . . 1 . . . 2 . . . . . . . . . . . Misdirections 2 | . . . . . . . . . . . . . . . . . . . . . . . . 2 . . . Weapon Failures 3 | . . . . . . . . 1 1 . . . . . . 1 . . . . . . . . . . . Overload Shots . | . . . . . . . . . . . . . . . . . . . . . . . . . . . . Overflow Damage 3435 | . 382 . 532 248 312 6 101 357 26 247 . 137 . . 14 75 168 86 . 39 . 97 207 39 160 116 86 Projectiles 796 | . . . 84 . . . . 66 26 247 . 125 . . . . . . . 39 . 56 114 39 . . . Explosions 54 | . . . . . . . . . . . . 12 . . . . . . . . . . 42 . . . . Melee 2585 | . 382 . 448 248 312 6 101 291 . . . . . . 14 75 168 86 . . . 41 51 . 160 116 86 Knockbacks 56 | . . . 7 . 5 . 2 1 4 11 . 6 2 . . . . 1 . 2 . 7 7 1 . . . Impact 13 | . . . 6 . 5 . 2 . . . . . . . . . . . . . . . . . . . . Kinetic 38 | . . . . . . . . 1 3 10 . 5 2 . . . . 1 . 2 . 6 7 1 . . . Secondary 5 | . . . 1 . . . . . 1 1 . 1 . . . . . . . . . 1 . . . . . Self-Inflicted Damage 348 | . . . . . 98 26 . . . . 44 48 . . . . . . . . . . 132 . . . . Shots 7 | . . . . . 1 1 . . . . 2 2 . . . . . . . . . . 1 . . . . Rammed . | . . . . . . . . . . . . . . . . . . . . . . . . . . . . Targets Rammed 2 | . . . . . . . . . . . . . . 2 . . . . . . . . . . . . . Kicked 2 | . . . . . . . . . . . . . . 2 . . . . . . . . . . . . . Crushed . | . . . . . . . . . . . . . . . . . . . . . . . . . . . . Highest Temperature 428 | 126 9 . 10 . 380 172 . 110 143 352 26 428 80 178 153 273 . 13 . 105 . 378 267 247 40 . 1 Average Temperature 77 | 74 9 . 10 . 105 75 . 39 31 71 11 126 24 46 40 88 . 5 . 34 . 154 73 123 15 . 1 Received Heat Transfer 5054 | . 204 . 174 20 765 144 27 519 78 328 105 576 45 415 129 276 . 84 . 195 18 619 54 9 198 27 45 Effects 10 | . . . . . 4 . . . . 1 . 4 . . . . . . . . . 1 . . . . . Shutdowns 4 | . . . . . 2 . . . . . . 2 . . . . . . . . . . . . . . . Energy Bleed 2 | . . . . . . . . . . 1 . . . . . . . . . . . 1 . . . . . Interference 2 | . . . . . 1 . . . . . . 1 . . . . . . . . . . . . . . . Matter Decay 1 | . . . . . . . . . . . . 1 . . . . . . . . . . . . . . . Short Circuit 1 | . . . . . 1 . . . . . . . . . . . . . . . . . . . . . . Siege Activations 3 | . . . . . . . . . . 1 1 1 . . . . . . . . . . . . . . . Total Turns 33 | . . . . . . . . . . 8 5 20 . . . . . . . . . . . . . . . Longest Duration 20 | . . . . . . . . . . 8 5 20 . . . . . . . . . . . . . . . Martial Activations . | . . . . . . . . . . . . . . . . . . . . . . . . . . . . Shielding Activations . | . . . . . . . . . . . . . . . . . . . . . . . . . . . . Robots Disrupted 1 | . . . . . . . . . . . 1 . . . . . . . . . . . . . . . . Combat Hostiles 1 | . . . . . . . . . . . 1 . . . . . . . . . . . . . . . . Robots Corrupted 18 | . 5 . 6 . 6 . . 1 . . . . . . . . . . . . . . . . . . . Combat Hostiles 13 | . 3 . 3 . 6 . . 1 . . . . . . . . . . . . . . . . . . . Parts Fried 34 | . 11 . 10 2 11 . . . . . . . . . . . . . . . . . . . . . . Impact Corruptions 62 | . 11 . 21 8 14 . 1 6 . 1 . . . . . . . . . . . . . . . . . Robots Melted 1 | . . . . . . . . . . . . . . . . . . . . . . 1 . . . . . Combat Hostiles 1 | . . . . . . . . . . . . . . . . . . . . . . 1 . . . . . Parts Melted 3 | . . . . . 1 . . . . . . . . . . . . . . 1 . 1 . . . . . Heat Transferred 3018 | 333 . . . . 920 . . . . 740 . 100 . . . . . . . . . 925 . . . . . Parts Sabotaged . | . . . . . . . . . . . . . . . . . . . . . . . . . . . . Parts Stolen . | . . . . . . . . . . . . . . . . . . . . . . . . . . . . Parts Stripped . | . . . . . . . . . . . . . . . . . . . . . . . . . . . . Power Chain Reactions 4 | . . . . 2 . . . . . . . 2 . . . . . . . . . . . . . . . Alert | -11 -10 -10 -9 -9 -8 -8 -7 -7 -7 -7 -6 -6 -6 -6 -5 -5 -4 -4 -4 -4 -3 -3 -3 -3 -2 -2 -2 ------- Run | Yrd Mat Min Mat Min Mat Gar Fac Gar Fac Gar Fac Gar Fac Gar Fac Gar Fac Gar Fac Gar Res Gar Res Gar Res Qua Sec Maximum Alert Level 5 | . . . . . 2 2 2 4 2 4 2 5 4 4 3 5 3 4 2 3 2 4 3 . . 1 1 Low Security (%) 10 | 100 100 100 100 100 13 . . . . . . . . . . . . . . . . . . 100 100 73 95 Level 1 17 | . . . . . 70 28 96 8 . 2 . . . . 5 2 . . . 8 . 43 55 . . 26 4 Level 2 28 | . . . . . 15 71 3 25 100 19 100 51 . . 21 18 . 4 100 44 100 31 24 . . . . Level 3 29 | . . . . . . . . 61 . 49 . 11 21 59 72 31 100 78 . 46 . 14 19 . . . . Level 4 10 | . . . . . . . . 4 . 29 . 23 78 40 . 24 . 17 . . . 10 . . . . . Level 5 3 | . . . . . . . . . . . . 13 . . . 22 . . . . . . . . . . . High Security . | . . . . . . . . . . . . . . . . . . . . . . . . . . . . Max Security . | . . . . . . . . . . . . . . . . . . . . . . . . . . . . Peak Influence 2051 | 5 185 57 143 48 563 598 400 1138 656 1225 642 1963 1216 1513 757 2051 1076 1455 644 1075 604 1129 781 187 192 215 225 Initial 1076 | . . 57 . 38 . 226 305 217 597 390 642 434 1030 765 757 267 1076 685 553 373 604 377 634 147 . 102 108 Average 684 | 1 89 23 90 9 333 476 336 730 592 872 533 948 1140 1082 693 1127 1023 969 541 711 528 571 451 144 84 167 152 Influence Increases 15968 | 10 298 . 343 14 1288 387 145 1001 151 905 377 1789 254 828 349 2184 123 1060 254 952 129 1242 955 90 362 211 267 Destroy 0b10 Robot/C 7225 | . 140 . 220 . 840 300 100 480 80 620 160 860 100 440 220 720 60 400 100 360 60 495 405 30 15 . 20 Destroy 0b10 Robot/NC 437 | 10 25 . 35 10 75 . 10 55 . 30 . . 5 5 45 35 15 . 5 8 . 20 20 . 16 8 5 Destroy Leader 900 | . 20 . 76 . 230 20 20 10 20 40 70 30 22 30 52 20 10 30 10 40 8 40 84 8 . . 10 Allied During Kill 1889 | . . . . . . . . . . 7 36 452 40 24 . 226 4 210 69 101 49 363 306 . 2 . . Successful Hack 249 | . 8 . 12 . 25 14 . . 4 12 12 . 24 14 . 16 34 30 . . 12 . . . 14 11 7 Select Force Hacks 30 | . 30 . . . . . . . . . . . . . . . . . . . . . . . . . . Disable Machine 474 | . . . . . 60 . . . 45 . 90 . 60 30 . . . 30 60 . . . 36 . . 48 15 Anti-Garrison Action 3105 | . . . . . . . . 250 . 100 . 300 . 250 . 1100 . 350 . 415 . 302 . 38 . . . Destroy Structure 405 | . . . . 4 28 38 . 26 2 36 9 42 3 20 2 22 . 10 10 28 . 22 92 2 3 6 . Partial Spotted 72 | . 15 . . . . . . . . . . . . . . . . . . . . . . . . 12 45 Lose Combat Pursuer 1182 | . 60 . . . 30 15 15 180 . 60 . 105 . 15 30 45 . . . . . . 12 12 312 126 165 Influence Decreases 15743 | 10 150 148 244 113 939 153 418 173 731 238 981 447 1123 479 1410 515 1195 984 776 410 701 616 1887 285 182 200 235 Entered New Map 7428 | . . 91 . 61 . 123 278 93 541 168 583 187 933 329 686 115 975 294 502 160 471 126 495 50 2 80 85 Time Decay 3790 | 10 140 57 244 52 649 . 140 . 190 . 368 . 130 . 374 . 190 . 214 . 190 . 542 . 130 100 70 Lost Part 1085 | . 10 . . . 140 30 . 80 . 50 10 40 . 90 50 120 10 40 . 20 . 80 30 175 10 20 80 Lost Ally 2090 | . . . . . . . . . . 20 20 220 60 60 . 280 20 200 60 230 40 410 370 60 40 . . Purge Threat 1350 | . . . . . 150 . . . . . . . . . 300 . . 450 . . . . 450 . . . . Squads Dispatched 44 | . 2 . 3 . 6 . 2 . . . 5 . 4 . 3 . 1 . . . 2 . 9 . 3 3 1 Investigation 7 | . 1 . 1 . 3 . . . . . . . . . . . . . . . . . 1 . . 1 . Extermination 11 | . . . . . . . 1 . . . 2 . . . 1 . 1 . . . . . 3 . 2 1 . Reinforcement 14 | . 1 . 2 . 3 . 1 . . . 1 . 1 . 1 . . . . . . . 1 . 1 1 1 Assault 6 | . . . . . . . . . . . . . . . 1 . . . . . 2 . 3 . . . . Garrison 6 | . . . . . . . . . . . 2 . 3 . . . . . . . . . 1 . . . . Intercept . | . . . . . . . . . . . . . . . . . . . . . . . . . . . . Searches Triggered . | . . . . . . . . . . . . . . . . . . . . . . . . . . . . Unchained Authorized 2 | . . . . . . . . . . . . . . . . . . . 1 . 1 . . . . . . Construction Impeded . | . . . . . . . . . . . . . . . . . . . . . . . . . . . . Haulers Reinforced . | . . . . . . . . . . . . . . . . . . . . . . . . . . . . Active Scanning Responses . | . . . . . . . . . . . . . . . . . . . . . . . . . . . . Cargo Convoy Interrupts . | . . . . . . . . . . . . . . . . . . . . . . . . . . . . Stealth | -11 -10 -10 -9 -9 -8 -8 -7 -7 -7 -7 -6 -6 -6 -6 -5 -5 -4 -4 -4 -4 -3 -3 -3 -3 -2 -2 -2 --------- Run | Yrd Mat Min Mat Min Mat Gar Fac Gar Fac Gar Fac Gar Fac Gar Fac Gar Fac Gar Fac Gar Res Gar Res Gar Res Qua Sec Distress Signals 8 | . 2 . 1 . 1 . . . . . . . . . . 1 . . . . . . . . . 1 2 Communications Jammed 370 | . . . . . 36 . . . . . . . . . . . 12 . 32 . 1 . 288 . 1 . . Distress Signals 368 | . . . . . 35 . . . . . . . . . . . 12 . 32 . . . 288 . 1 . . Times Spotted 646 | . 15 . 23 13 65 15 7 31 4 34 6 43 9 37 14 45 6 31 2 40 10 44 54 14 40 24 20 Peak Tracking Total 23 | . 5 . 5 11 6 6 5 6 3 5 2 9 3 14 4 6 4 4 1 8 6 6 8 9 11 11 23 Tactical Retreats 41 | . 3 . . 1 1 1 1 5 . 3 . 5 . 1 2 1 . . . . . . 1 1 8 3 4 Traps | -11 -10 -10 -9 -9 -8 -8 -7 -7 -7 -7 -6 -6 -6 -6 -5 -5 -4 -4 -4 -4 -3 -3 -3 -3 -2 -2 -2 ------- Run | Yrd Mat Min Mat Min Mat Gar Fac Gar Fac Gar Fac Gar Fac Gar Fac Gar Fac Gar Fac Gar Res Gar Res Gar Res Qua Sec Traps Triggered 73 | . . . 1 . . 6 . 13 . 7 1 3 . 3 2 12 . 8 . 4 . 4 3 6 . . . Indirectly . | . . . . . . . . . . . . . . . . . . . . . . . . . . . . Trap Hack Attempts . | . . . . . . . . . . . . . . . . . . . . . . . . . . . . Triggered . | . . . . . . . . . . . . . . . . . . . . . . . . . . . . Disarmed . | . . . . . . . . . . . . . . . . . . . . . . . . . . . . Reprogrammed . | . . . . . . . . . . . . . . . . . . . . . . . . . . . . Reused . | . . . . . . . . . . . . . . . . . . . . . . . . . . . . Traps Extracted . | . . . . . . . . . . . . . . . . . . . . . . . . . . . . Installed . | . . . . . . . . . . . . . . . . . . . . . . . . . . . . Triggered . | . . . . . . . . . . . . . . . . . . . . . . . . . . . . Most Traps Carried 6 | . . . . . . . . . . . . . . 6 . . . . . . . . . . . . . Machines | -11 -10 -10 -9 -9 -8 -8 -7 -7 -7 -7 -6 -6 -6 -6 -5 -5 -4 -4 -4 -4 -3 -3 -3 -3 -2 -2 -2 ---------- Run | Yrd Mat Min Mat Min Mat Gar Fac Gar Fac Gar Fac Gar Fac Gar Fac Gar Fac Gar Fac Gar Res Gar Res Gar Res Qua Sec Machines Disabled 63 | . . . . . 4 . . . 3 . 6 3 4 6 . 7 . 8 4 5 . 4 3 1 . 4 1 Max in Single Turn 6 | . . . . . 2 . . . 2 . 6 1 . 1 . 1 . 1 . 1 . 1 1 1 . 1 1 Garrison Access 3 | . . . . . . . . . . . . . . . . . . . . . . . 1 . 1 1 . Garrison Relay 26 | . . . . . . . . . . . . 2 . 3 . 6 . 5 . 5 . 4 . 1 . . . Machines Repaired . | . . . . . . . . . . . . . . . . . . . . . . . . . . . . Machines Dismantled . | . . . . . . . . . . . . . . . . . . . . . . . . . . . . Machines Sabotaged . | . . . . . . . . . . . . . . . . . . . . . . . . . . . . Overloaded Fab Kills . | . . . . . . . . . . . . . . . . . . . . . . . . . . . . Hacking | -11 -10 -10 -9 -9 -8 -8 -7 -7 -7 -7 -6 -6 -6 -6 -5 -5 -4 -4 -4 -4 -3 -3 -3 -3 -2 -2 -2 --------- Run | Yrd Mat Min Mat Min Mat Gar Fac Gar Fac Gar Fac Gar Fac Gar Fac Gar Fac Gar Fac Gar Res Gar Res Gar Res Qua Sec Machines Accessed 65 | . 2 . 5 . 11 1 4 1 3 1 3 1 2 2 2 2 2 3 2 1 6 . 2 . 3 5 1 Terminals 39 | . 1 . 4 . 8 1 1 1 2 1 1 1 . 2 1 2 . 3 . 1 2 . 1 . 1 4 1 Fabricators 1 | . . . . . . . 1 . . . . . . . . . . . . . . . . . . . . Repair Stations . | . . . . . . . . . . . . . . . . . . . . . . . . . . . . Recycling Units 9 | . 1 . 1 . 1 . . . . . 1 . 1 . . . 1 . 1 . 1 . . . 1 . . Scanalyzers 4 | . . . . . 1 . 1 . . . . . . . . . . . . . 2 . . . . . . Garrison Access 12 | . . . . . 1 . 1 . 1 . 1 . 1 . 1 . 1 . 1 . 1 . 1 . 1 1 . Total Hacks 151 | . 4 . 15 . 32 1 10 3 6 1 7 1 4 4 6 4 9 5 4 1 10 . 2 . 11 10 1 Successful 68 | . 2 . 6 . 12 1 3 . 3 1 6 . 4 1 3 2 3 3 1 . 3 . 1 . 9 3 1 Failed 81 | . 2 . 9 . 19 . 6 3 3 . 1 1 . 3 3 2 6 2 3 1 7 . 1 . 2 7 . Catastrophic 20 | . . . 1 . 6 . 2 1 . . . 1 . 1 . 1 2 . . 1 1 . 1 . . 2 . Database Lockouts 2 | . . . . . 1 . 1 . . . . . . . . . . . . . . . . . . . . Manual 73 | . 4 . 13 . 19 . 3 . 1 . 6 . 3 . . . 8 . 3 . 3 . . . 6 4 . Terminals 88 | . 2 . 9 . 24 1 4 3 5 1 2 1 . 4 5 4 . 5 . 1 3 . 1 . 3 9 1 Fabricators 2 | . . . . . . . 2 . . . . . . . . . . . . . . . . . . . . Repair Stations . | . . . . . . . . . . . . . . . . . . . . . . . . . . . . Recycling Units 33 | . 2 . 6 . 2 . . . . . 4 . 1 . . . 5 . 3 . 3 . . . 7 . . Scanalyzers 10 | . . . . . 4 . 3 . . . . . . . . . . . . . 3 . . . . . . Garrison Access 18 | . . . . . 2 . 1 . 1 . 1 . 3 . 1 . 4 . 1 . 1 . 1 . 1 1 . Terminal Hacks 26 | . 1 . 2 . 5 1 1 . 2 1 . . . 1 2 2 . 3 . . . . . . 2 2 1 Record 1 | . . . . . . . 1 . . . . . . . . . . . . . . . . . . . . Prototype ID Bank 2 | . . . 1 . 1 . . . . . . . . . . . . . . . . . . . . . . Open Door 4 | . . . . . . . . . . . . . . . . 1 . 1 . . . . . . . 1 1 Branch Access Points 3 | . 1 . . . . . . . 1 . . . . . . . . . . . . . . . 1 . . Emergency Access Points 4 | . . . . . . 1 . . . 1 . . . 1 . . . 1 . . . . . . . . . Unreport Threat 3 | . . . . . 1 . . . . . . . . . 2 . . . . . . . . . . . . Locate Traps 5 | . . . 1 . 2 . . . . . . . . . . . . . . . . . . . 1 1 . Registered Components 1 | . . . . . 1 . . . . . . . . . . . . . . . . . . . . . . Zone Layout 1 | . . . . . . . . . 1 . . . . . . . . . . . . . . . . . . Security Stations 2 | . . . . . . . . . . . . . . . . 1 . 1 . . . . . . . . . Fabricator Hacks . | . . . . . . . . . . . . . . . . . . . . . . . . . . . . Repair Station Hacks . | . . . . . . . . . . . . . . . . . . . . . . . . . . . . Recycling Unit Hacks 3 | . . . 1 . . . . . . . . . . . . . . . . . . . . . 2 . . Report Inventory 1 | . . . . . . . . . . . . . . . . . . . . . . . . . 1 . . Retrieve Matter 1 | . . . . . . . . . . . . . . . . . . . . . . . . . 1 . . Retrieve Components 1 | . . . 1 . . . . . . . . . . . . . . . . . . . . . . . . Scanalyzer 5 | . . . . . 3 . 1 . . . . . . . . . . . . . 1 . . . . . . Insert Component 1 | . . . . . 1 . . . . . . . . . . . . . . . . . . . . . . Analyze 1 | . . . . . 1 . . . . . . . . . . . . . . . . . . . . . . Retrieve Study 3 | . . . . . 1 . 1 . . . . . . . . . . . . . 1 . . . . . . Garrison Access Hacks 12 | . . . . . 1 . 1 . 1 . 1 . 1 . 1 . 1 . 1 . 1 . 1 . 1 1 . Unlock Access 10 | . . . . . 1 . 1 . 1 . 1 . 1 . 1 . 1 . 1 . 1 . 1 . . . . Seal Access 2 | . . . . . . . . . . . . . . . . . . . . . . . . . 1 1 . Unauthorized Hacks 22 | . 1 . 3 . 3 . . . . . 5 . 3 . . . 2 . . . 1 . . . 4 . . Terminals 4 | . . . 1 . 2 . . . . . 1 . . . . . . . . . . . . . . . . Botnet 2 | . . . . . 1 . . . . . 1 . . . . . . . . . . . . . . . . Operators 2 | . . . 1 . 1 . . . . . . . . . . . . . . . . . . . . . . Fabricators . | . . . . . . . . . . . . . . . . . . . . . . . . . . . . Repair Stations . | . . . . . . . . . . . . . . . . . . . . . . . . . . . . Recycling Units 14 | . 1 . 2 . . . . . . . 4 . 1 . . . 1 . . . 1 . . . 4 . . Monitor 3 | . . . 1 . . . . . . . 1 . . . . . . . . . . . . . 1 . . Reject 2 | . . . . . . . . . . . 1 . . . . . . . . . . . . . 1 . . Recyclers 2 | . . . . . . . . . . . 1 . . . . . . . . . . . . . 1 . . Mask 6 | . . . 1 . . . . . . . 1 . 1 . . . 1 . . . 1 . . . 1 . . Tunnel 1 | . 1 . . . . . . . . . . . . . . . . . . . . . . . . . . Scanalyzers . | . . . . . . . . . . . . . . . . . . . . . . . . . . . . Garrison Access 4 | . . . . . 1 . . . . . . . 2 . . . 1 . . . . . . . . . . Restock 1 | . . . . . . . . . . . . . 1 . . . . . . . . . . . . . . Decoy 2 | . . . . . 1 . . . . . . . 1 . . . . . . . . . . . . . . Reprogram 1 | . . . . . . . . . . . . . . . . . 1 . . . . . . . . . . Data Cores Recovered 2 | . . . . . . . . . . . . . . . . . . . . . . . . . 1 . 1 Used 1 | . . . . . . . . . . . . . . . . . . . . . . . . . 1 . . Hacking Detections 53 | . 1 . 5 . 11 . 2 1 2 1 3 1 2 2 1 2 2 2 1 1 5 . 2 . 2 4 . Full Trace Events 5 | . . . . . 3 . . 1 . . . . . . . . . . . . . . . . . 1 . Feedback Events . | . . . . . . . . . . . . . . . . . . . . . . . . . . . . Feedback Blocked . | . . . . . . . . . . . . . . . . . . . . . . . . . . . . Robot Schematics Acquired . | . . . . . . . . . . . . . . . . . . . . . . . . . . . . Robots Built . | . . . . . . . . . . . . . . . . . . . . . . . . . . . . Authchips . | . . . . . . . . . . . . . . . . . . . . . . . . . . . . Time . | . . . . . . . . . . . . . . . . . . . . . . . . . . . . Total Robot Build Rating . | . . . . . . . . . . . . . . . . . . . . . . . . . . . . Part Schematics Acquired 1 | . . . . . 1 . . . . . . . . . . . . . . . . . . . . . . Parts Built . | . . . . . . . . . . . . . . . . . . . . . . . . . . . . Authchips . | . . . . . . . . . . . . . . . . . . . . . . . . . . . . Time . | . . . . . . . . . . . . . . . . . . . . . . . . . . . . Total Part Build Rating . | . . . . . . . . . . . . . . . . . . . . . . . . . . . . Part Studies Acquired 3 | . . . . . 1 . 1 . . . . . . . . . . . . . 1 . . . . . . Parts Repaired . | . . . . . . . . . . . . . . . . . . . . . . . . . . . . Time . | . . . . . . . . . . . . . . . . . . . . . . . . . . . . Parts Recycled . | . . . . . . . . . . . . . . . . . . . . . . . . . . . . Recycled Matter . | . . . . . . . . . . . . . . . . . . . . . . . . . . . . Retrieved Matter . | . . . . . . . . . . . . . . . . . . . . . . . . . . . . Retrieved Components . | . . . . . . . . . . . . . . . . . . . . . . . . . . . . Parts Scanalyzed 1 | . . . . . 1 . . . . . . . . . . . . . . . . . . . . . . Part Schematics Acquired 1 | . . . . . 1 . . . . . . . . . . . . . . . . . . . . . . Parts Damaged . | . . . . . . . . . . . . . . . . . . . . . . . . . . . . Bothacking | -11 -10 -10 -9 -9 -8 -8 -7 -7 -7 -7 -6 -6 -6 -6 -5 -5 -4 -4 -4 -4 -3 -3 -3 -3 -2 -2 -2 ------------ Run | Yrd Mat Min Mat Min Mat Gar Fac Gar Fac Gar Fac Gar Fac Gar Fac Gar Fac Gar Fac Gar Res Gar Res Gar Res Qua Sec Used RIF Installer 12 | . . . . . . 1 . 1 . 2 . 1 . 1 . 2 . 1 . 1 . 2 . . . . . Coupler Efficiency 1 | . . . . . . . . . . . . . . . . . . 1 . . . . . . . . . Hotswap 1 | . . . . . . . . . . 1 . . . . . . . . . . . . . . . . . Threat Obfuscator 1 | . . . . . . . . . . . . . . . . . . . . 1 . . . . . . . Signal Jammer 1 | . . . . . . . . . . . . . . 1 . . . . . . . . . . . . . Zone Cloak 1 | . . . . . . . . . . . . . . . . 1 . . . . . . . . . . . Watcher Feeds 1 | . . . . . . . . . . 1 . . . . . . . . . . . . . . . . . Patrol Navigation 1 | . . . . . . . . . . . . . . . . 1 . . . . . . . . . . . Structural Interface 1 | . . . . . . . . 1 . . . . . . . . . . . . . . . . . . . Program Shield 1 | . . . . . . . . . . . . . . . . . . . . . . 1 . . . . . Autooverride 1 | . . . . . . . . . . . . 1 . . . . . . . . . . . . . . . Autoassimilate 1 | . . . . . . . . . . . . . . . . . . . . . . 1 . . . . . Robots Hacked 151 | . . . . . . . . . . . 2 3 1 6 . 14 5 23 4 18 10 22 27 4 12 . . Non-combat 27 | . . . . . . . . . . . 2 . . . . . 2 2 3 . 2 1 8 . 7 . . Combat 124 | . . . . . . . . . . . . 3 1 6 . 14 3 21 1 18 8 21 19 4 5 . . Autooverrided 31 | . . . . . . . . . . . . 2 1 4 . 4 . 8 . 4 . 4 2 . 2 . . Autoassimilated 9 | . . . . . . . . . . . . . . . . . . . . . . 1 5 1 2 . . Robot Hacks Applied 136 | . . . . . . . . . . . 2 1 . 2 . 10 6 20 7 15 12 22 27 3 9 . . parse_system 9 | . . . . . . . . . . . . 1 . . . . . . 1 1 2 2 2 . . . . no_distress 1 | . . . . . . . . . . . . . . . . . . . . . . . 1 . . . . deconstruct_machine 1 | . . . . . . . . . . . . . . . . . . . . . 1 . . . . . . ignore_repairs 2 | . . . . . . . . . . . . . . . . . 1 . 1 . . . . . . . . map_walls 2 | . . . . . . . . . . . . . . . . . 1 . 1 . . . . . . . . randomize_corridors 1 | . . . . . . . . . . . . . . . . . . . 1 . . . . . . . . map_earth 1 | . . . . . . . . . . . 1 . . . . . . . . . . . . . . . . find_dsf 1 | . . . . . . . . . . . . . . . . . . . . . 1 . . . . . . drop_inventory 4 | . . . . . . . . . . . . . . . . . . . . . 1 . 1 . 2 . . find_recycling 1 | . . . . . . . . . . . 1 . . . . . . . . . . . . . . . . deconstruct_bot 1 | . . . . . . . . . . . . . . . . . . . . . . . 1 . . . . purge_threat 8 | . . . . . . . . . . . . . . . . . . 4 . . . . 4 . . . . block_reporting 3 | . . . . . . . . . . . . . . . . . . . . . . . . . 3 . . map_route 5 | . . . . . . . . . . . . . . . . . 1 . 1 . . . 2 . 1 . . mark_security 3 | . . . . . . . . . . . . . . . . . . 1 1 . . . . . 1 . . scatter_targeting 1 | . . . . . . . . . . . . . . . . 1 . . . . . . . . . . . disrupt_area 1 | . . . . . . . . . . . . . . . . . . . . . . 1 . . . . . amplify_resonance 8 | . . . . . . . . . . . . . . . . 1 . 2 . 1 . 3 1 . . . . wipe_record 3 | . . . . . . . . . . . . . . . . . . 1 . . . . . . 2 . . disable_weapons 1 | . . . . . . . . . . . . . . . . 1 . . . . . . . . . . . overwrite_iff 26 | . . . . . . . . . . . . . . . . 1 2 5 1 4 1 7 4 1 . . . formatsys_low 2 | . . . . . . . . . . . . . . . . . . 1 . . . . 1 . . . . formatsys_high 51 | . . . . . . . . . . . . . . 2 . 6 1 6 . 9 6 9 10 2 . . . Relay Couplers Released 112 | . . . . . . . . . . . . 10 . 11 . 24 . 23 . 25 . 14 2 3 . . . Machine Destruction 109 | . . . . . . . . . . . . 10 . 11 . 24 . 23 . 22 . 14 2 3 . . . Programmers 3 | . . . . . . . . . . . . . . . . . . . . 3 . . . . . . . Attached 55 | . . . . . . . . . . . 1 6 . 2 2 6 2 10 . 9 3 11 2 1 . . . Fabnet Peak Effective % . | . . . . . . . . . . . . . . . . . . . . . . . . . . . . Robots Rewired 35 | . . . . . . . . . . . 1 17 . . . 7 . 2 . . . 8 . . . . . Allies Hacked 3 | . . . . . . . . . . . . . . . . . . 1 . . . 2 . . . . . Hacks Repelled . | . . . . . . . . . . . . . . . . . . . . . . . . . . . . Allies | -11 -10 -10 -9 -9 -8 -8 -7 -7 -7 -7 -6 -6 -6 -6 -5 -5 -4 -4 -4 -4 -3 -3 -3 -3 -2 -2 -2 -------- Run | Yrd Mat Min Mat Min Mat Gar Fac Gar Fac Gar Fac Gar Fac Gar Fac Gar Fac Gar Fac Gar Res Gar Res Gar Res Qua Sec Total Allies 154 | . . . . . . . . . . 3 1 19 1 6 . 18 3 24 1 16 7 27 20 4 4 . . Largest Group 15 | . . . . . . . . . . 2 2 15 4 3 . 7 2 10 8 6 6 9 13 2 1 . . Highest-Rated Group 649 | . . . . . . . . . . 124 124 557 143 87 . 309 24 494 395 286 313 446 649 94 64 . . Highest-Rated Ally 116 | . . . . . . . . . . 62 62 43 41 29 . 49 12 99 62 116 68 89 64 47 64 . . Total Orders 1 | . . . . . . . . . . . . . . . . . . . . . . . . . 1 . . EXPLORE 1 | . . . . . . . . . . . . . . . . . . . . . . . . . 1 . . Ally Attacks 804 | . . . . . . . . . . 3 28 136 27 39 . 88 12 79 15 78 18 126 143 7 5 . . Total Damage 26829 | . . . . . . . . . . 85 1022 3525 923 643 . 2058 93 2669 939 2715 636 4818 6343 135 225 . . Kills 154 | . . . . . . . . . . 2 5 31 4 3 . 17 1 14 5 15 4 23 29 . 1 . . Allies Corrupted 10 | . . . . . . . . . . . . 2 1 . . . . . 1 . . 2 3 1 . . . Allies Melted 3 | . . . . . . . . . . . . . . . . 1 . . . 1 . 1 . . . . . Intel | -11 -10 -10 -9 -9 -8 -8 -7 -7 -7 -7 -6 -6 -6 -6 -5 -5 -4 -4 -4 -4 -3 -3 -3 -3 -2 -2 -2 ------- Run | Yrd Mat Min Mat Min Mat Gar Fac Gar Fac Gar Fac Gar Fac Gar Fac Gar Fac Gar Fac Gar Res Gar Res Gar Res Qua Sec Active Infowar (turns) 2792 | 15 223 . . . 831 . . . . . 803 59 . . 454 125 . . . . . . . . 4 196 82 Sensors 601 | . . . . . . . . . . . . . . . 200 123 . . . . . . . . . 196 82 IFF 862 | . . . . . . . . . . . 803 59 . . . . . . . . . . . . . . . Structural 505 | . . . . . . . . . . . . . . . 382 123 . . . . . . . . . . . Seismic 238 | 15 223 . . . . . . . . . . . . . . . . . . . . . . . . . . Cloaking 410 | . . . . . . . . . . . . . . . 285 125 . . . . . . . . . . . Jamming 835 | . . . . . 831 . . . . . . . . . . . . . . . . . . . 4 . . ECM 8 | . . . . . . . . . . . . . . . . . . . . . . . . . . 8 . Robot Analysis Total . | . . . . . . . . . . . . . . . . . . . . . . . . . . . . Derelict Logs Recovered 1 | . . . . 1 . . . . . . . . . . . . . . . . . . . . . . . Drone Launches 2 | . . . . . . . . . . . . . . . . . . . . . . . . . 2 . . Drone Recoveries . | . . . . . . . . . . . . . . . . . . . . . . . . . . . . Exploration | -11 -10 -10 -9 -9 -8 -8 -7 -7 -7 -7 -6 -6 -6 -6 -5 -5 -4 -4 -4 -4 -3 -3 -3 -3 -2 -2 -2 ------------- Run | Yrd Mat Min Mat Min Mat Gar Fac Gar Fac Gar Fac Gar Fac Gar Fac Gar Fac Gar Fac Gar Res Gar Res Gar Res Qua Sec Turns Passed 27184 | 121 352 161 548 280 2608 841 284 1877 396 1751 855 1909 269 1274 869 2910 386 1759 451 2249 382 2091 1552 290 361 214 144 Spaces Moved 13794 | 66 196 135 321 223 1321 470 203 758 152 566 322 692 184 788 649 1040 136 830 211 979 208 745 594 138 769 685 413 Core 253 | 4 . . . . . . . . . . . . . 22 64 3 . . . . . . . 53 45 1 61 Treads 4812 | . . . . . 1161 175 . 701 152 566 322 367 . . . 66 13 . . 73 . 537 594 85 . . . Legs 2723 | 62 196 135 321 161 . 295 203 9 . . . 291 184 766 100 . . . . . . . . . . . . Wheels 3831 | . . . . . . . . 48 . . . 34 . . 292 971 123 830 211 906 208 208 . . . . . Hover 415 | . . . . 62 160 . . . . . . . . . 193 . . . . . . . . . . . . Flight 1760 | . . . . . . . . . . . . . . . . . . . . . . . . . 724 684 352 Fastest Speed 12 | 50 120 120 120 77 77 120 120 100 240 240 240 115 116 50 50 108 140 140 197 144 141 180 232 50 18 12 21 Average Speed 159 | 115 120 120 120 109 155 155 120 188 240 250 240 226 116 114 90 226 218 172 202 200 168 228 232 163 29 18 28 Slowest Speed 3350 | 120 120 120 120 190 240 190 120 240 240 320 240 320 116 260 150 3350 320 197 204 350 195 320 232 305 50 600 50 Overloaded Moves 5 | . . . . . . . . . . . . . . . . . . . . . . . . . . 5 . Propulsion Burnouts . | . . . . . . . . . . . . . . . . . . . . . . . . . . . . Robots Hopped 29 | . . . . . . . . . . . . . . . . . . . . . . . . . 16 5 8 Potential Cave-ins . | . . . . . . . . . . . . . . . . . . . . . . . . . . . . Cave-ins Triggered . | . . . . . . . . . . . . . . . . . . . . . . . . . . . . Teleports 1 | . . . . . . . . . . . . . . . . . . . . . . . . . . 1 . Exploration Rate (%) 44 | 4 41 30 32 41 90 49 7 86 5 91 11 81 7 88 11 92 5 88 9 97 12 76 28 26 30 60 42 Regions Visited 27 Branch Regions 4 Pre-discovered Areas 2 | . 1 . . 1 . . . . . . . . . . . . . . . . . . . . . . . Known Exits Taken 13 | . 1 . . . 1 . 1 . 1 . 1 . 1 . 1 . 1 . 1 . 1 . 1 . 1 1 . Unknown Exits Taken 4 | 1 . 1 1 1 . . . . . . . . . . . . . . . . . . . . . . . Scrap Searched 3 | . . 2 . 1 . . . . . . . . . . . . . . . . . . . . . . . Spaces Dug 6 | . . . . . 1 . . . . . . 2 . . . . . . . 1 . . . . . 2 . Terrain Destroyed 162 | . . . . 4 26 22 . 8 2 24 6 18 2 4 . 1 . 5 . 7 . 8 22 1 . 2 . Melee 3 | . . . . . 1 . . . . . . . . . . . . . . . . . . . . 2 . Projectile 87 | . . . . . . . . 8 2 24 6 9 2 4 . 1 . 5 . 7 . 8 10 1 . . . AOE 72 | . . . . 4 25 22 . . . . . 9 . . . . . . . . . . 12 . . . . Terrain Rammed . | . . . . . . . . . . . . . . . . . . . . . . . . . . . . Walls Destroyed . | . . . . . . . . . . . . . . . . . . . . . . . . . . . . Machines Disabled . | . . . . . . . . . . . . . . . . . . . . . . . . . . . . Actions | -11 -10 -10 -9 -9 -8 -8 -7 -7 -7 -7 -6 -6 -6 -6 -5 -5 -4 -4 -4 -4 -3 -3 -3 -3 -2 -2 -2 --------- Run | Yrd Mat Min Mat Min Mat Gar Fac Gar Fac Gar Fac Gar Fac Gar Fac Gar Fac Gar Fac Gar Res Gar Res Gar Res Qua Sec Total 17302 | 85 270 134 410 245 1659 558 232 1043 168 765 381 962 215 986 846 1434 184 1104 230 1195 237 1011 712 190 868 753 425 Wait 753 | 1 34 . 32 . 47 23 6 43 . 61 13 56 7 54 44 32 3 77 . 40 6 48 30 4 53 31 8 Move 13718 | 65 195 134 320 222 1320 469 203 757 152 565 322 691 183 786 649 1039 135 829 211 978 208 744 594 137 739 674 397 Hop 26 | . . . . . . . . . . . . . . . . . . . . . . . . . 13 5 8 Pick Up 277 | 1 6 . 4 3 39 2 2 28 3 8 6 19 1 21 14 41 . 29 1 19 1 15 2 3 6 2 1 Fast Attach 229 | 7 2 . . 2 23 3 3 23 1 2 2 25 6 2 29 15 6 6 1 15 1 18 2 1 20 12 2 Attach 109 | . 1 . 4 . 14 2 . 9 . 4 4 8 . 3 10 17 1 7 1 4 4 6 3 4 3 . . Detach 108 | . 3 . 1 . 11 1 . 11 . 1 3 15 . 1 12 10 1 7 1 6 2 8 2 . 3 8 1 Swap 140 | . 2 . 5 2 24 3 4 9 2 5 3 15 . 7 3 15 4 7 1 14 . 6 5 2 1 1 . Drop 329 | . 3 . 5 8 48 3 4 32 1 9 6 41 5 17 15 24 5 26 2 29 1 21 2 3 8 8 3 Fire 947 | 11 . . . 1 100 2 . 58 9 98 20 82 12 82 41 70 10 65 8 52 14 111 67 19 15 . . Melee 379 | . 24 . 39 7 33 30 10 53 . . . . . . 21 54 19 13 2 19 . 21 5 5 7 12 5 Ram . | . . . . . . . . . . . . . . . . . . . . . . . . . . . . Kick 2 | . . . . . . . . . . . . . . 2 . . . . . . . . . . . . . Crush . | . . . . . . . . . . . . . . . . . . . . . . . . . . . . Escape Stasis 232 | . . . . . . 20 . 20 . 12 2 10 . 11 8 86 . 32 . 16 . 3 . 12 . . . Rewire 53 | . . . . . . . . . . . . . 1 . . 31 . 6 2 3 . 10 . . . . . Trap . | . . . . . . . . . . . . . . . . . . . . . . . . . . . . Miscellaneous . | . . . . . . . . . . . . . . . . . . . . . . . . . . . . Route ------- -11/Scrapyard -10/Materials (discovered 2 exits: *Min x2) -10/Mines -9/Materials (discovered 2 exits: *Mat / [*Min]) -9/Mines -8/Materials (discovered 3 exits: *Fac x2 / Gar) -8/Garrison -7/Factory -7/Garrison (discovered 3 exits: *Fac x3) -7/Factory (discovered 4 exits: *Fac / Low x2 / Gar) -7/Garrison (discovered 3 exits: *Fac x3) -6/Factory -6/Garrison (discovered 2 exits: *Fac x2) -6/Factory (discovered 2 exits: [*Low] / Gar) -6/Garrison (discovered 3 exits: *Fac x3) -5/Factory -5/Garrison (discovered 3 exits: *Fac x3) -4/Factory -4/Garrison (discovered 3 exits: *Fac x3) -4/Factory (discovered 2 exits: *Res / Gar) -4/Garrison (discovered 3 exits: *Res x3) -3/Research -3/Garrison (discovered 2 exits: *Res x2) -3/Research (discovered 2 exits: *Res / Gar) -3/Garrison -2/Research (discovered 2 exits: *Qua x2) -2/Quarantine (discovered 3 exits: [*Acc] / *Sec / *Frg) -2/Section 7 History --------- Turn | Location | Event 6 | -11/Scrapyard | Discovered new exit (range 15) 122 | -11/Scrapyard | Entered Materials 303 | -10/Materials | Build established: Mutant 420 | -10/Materials | Identified exit to Mines 474 | -10/Materials | Entered Mines 487 | -10/Mines | Met a Derelict bent on vengeance 527 | -10/Mines | Found a hidden stash of uninstalled traps 545 | -10/Mines | Discovered new exit (range 12) 635 | -10/Mines | Entered Materials 635 | -9/Materials | Evolved 2 slots: Propulsion x1, Weapon x1 892 | -9/Materials | Discovered new exit (range 10) 1054 | -9/Materials | Discovered new exit (range 5) 1183 | -9/Materials | Entered Mines 1184 | -9/Mines | Assembled infested the area 1189 | -9/Mines | Assisted by a Guerilla fighting off Assembled 1264 | -9/Mines | YI-UF0 nonchalantly dropped a Grenade Launcher on the ground 1406 | -9/Mines | Learned location of Zion (-6) 1440 | -9/Mines | Discovered new exit (range 11) 1463 | -9/Mines | Entered Materials 1463 | -8/Materials | Evolved 2 slots: Utility x2 1624 | -8/Materials | Lost 3 parts (2u1w) 1973 | -8/Materials | Discovered new exit (range 4) 2082 | -8/Materials | Central database locked down 2185 | -8/Materials | Build established: Scavenger-Gunner 2280 | -8/Materials | Lost 6 parts (2p3n1w) 2343 | -8/Materials | Core integrity fell below 50% 2553 | -8/Materials | Identified exit to Garrison 3138 | -8/Materials | Discovered new exit (range 10) 3407 | -8/Materials | Build established: Gunner 3917 | -8/Materials | Identified exit to Factory 3977 | -8/Materials | Build established: Gladiator 4071 | -8/Materials | Entered Garrison 4187 | -8/Garrison | Triggered checkpoint 4281 | -8/Garrison | Triggered checkpoint 4364 | -8/Garrison | Destroyed 7 combat bots 4409 | -8/Garrison | Triggered checkpoint 4455 | -8/Garrison | Installed Relay Interface Framework 4476 | -8/Garrison | Discovered exit to Factory (range 15) 4912 | -8/Garrison | Entered Factory 4912 | -7/Factory | Evolved 2 slots: Utility x2 5054 | -7/Factory | Build established: Scavenger-Gladiator 5114 | -7/Factory | Central database locked down 5196 | -7/Factory | Identified exit to Garrison 5196 | -7/Factory | Entered Garrison 5300 | -7/Garrison | Spotted B-75 Beast 5366 | -7/Garrison | Destroyed B-75 Beast 5392 | -7/Garrison | Lost 8 parts (1p2n5u) 5408 | -7/Garrison | Triggered checkpoint 5792 | -7/Garrison | Triggered checkpoint 5859 | -7/Garrison | Destroyed 9 combat bots 5860 | -7/Garrison | Triggered checkpoint 5940 | -7/Garrison | Build established: Scavenger-Gunner 5951 | -7/Garrison | Discovered new exit (range 10) 6013 | -7/Garrison | Expanded RIF knowledge: Structural Interface 6143 | -7/Garrison | Discovered new exit (range 10) 6410 | -7/Garrison | Triggered checkpoint 6643 | -7/Garrison | Core integrity fell below 50% 6664 | -7/Garrison | Triggered checkpoint 6766 | -7/Garrison | Build established: Hauler-Mutant 6849 | -7/Garrison | Discovered new exit (range 10) 6872 | -7/Garrison | Triggered checkpoint 7073 | -7/Garrison | Entered Factory 7080 | -7/Factory | Build established: Hauler-Gunner 7181 | -7/Factory | Identified exit to Lower Caves 7353 | -7/Factory | Discovered new exit (range 12) 7469 | -7/Factory | Identified exit to Garrison 7469 | -7/Factory | Entered Garrison 7574 | -7/Garrison | Lost 3 parts (1n1u1w) 7651 | -7/Garrison | Triggered checkpoint 7708 | -7/Garrison | Expanded RIF knowledge: Watcher Feeds 7834 | -7/Garrison | Destroyed 8 combat bots 7853 | -7/Garrison | Triggered checkpoint 7945 | -7/Garrison | Triggered checkpoint 8027 | -7/Garrison | Discovered new exit (range 15) 8256 | -7/Garrison | Discovered new exit (range 10) 8343 | -7/Garrison | Rescued a captive Derelict 8345 | -7/Garrison | Rescued a captive Derelict 8348 | -7/Garrison | Expanded RIF knowledge: Hotswap 8459 | -7/Garrison | Triggered checkpoint 8484 | -7/Garrison | Core integrity fell below 20% 8621 | -7/Garrison | Triggered checkpoint 8641 | -7/Garrison | Triggered checkpoint 8716 | -7/Garrison | Discovered new exit (range 12) 8778 | -7/Garrison | Build established: Hauler-Mutant 8865 | -7/Garrison | Triggered checkpoint 8909 | -7/Garrison | Found embedded Infiltrators 9220 | -7/Garrison | Entered Factory 9220 | -6/Factory | Accompanied by 2 allies 9220 | -6/Factory | Evolved 2 slots: Utility x2 9260 | -6/Factory | Build established: Hauler-Gunner 9881 | -6/Factory | Garrison activated, responded to threat 10075 | -6/Factory | Identified exit to Garrison 10075 | -6/Factory | Entered Garrison 10075 | -6/Garrison | Accompanied by 1 ally 10101 | -6/Garrison | Triggered checkpoint 10424 | -6/Garrison | Build established: Hauler-Tank 10443 | -6/Garrison | Triggered checkpoint 10458 | -6/Garrison | Garrison Relay disabled 10581 | -6/Garrison | Triggered checkpoint 10581 | -6/Garrison | Triggered checkpoint 10657 | -6/Garrison | Lost 3 parts (2u1w) 10848 | -6/Garrison | Expanded RIF knowledge: Autooverride 11138 | -6/Garrison | Lost 4 allies 11414 | -6/Garrison | Garrison Relay disabled 11487 | -6/Garrison | Triggered checkpoint 11573 | -6/Garrison | Discovered new exit (range 15) 11685 | -6/Garrison | Triggered checkpoint 11703 | -6/Garrison | Triggered checkpoint 11759 | -6/Garrison | Triggered checkpoint 11812 | -6/Garrison | Discovered new exit (range 11) 11859 | -6/Garrison | Lost 5 allies 11917 | -6/Garrison | Lost 3 allies 11984 | -6/Garrison | Entered Factory 11984 | -6/Factory | Accompanied by 4 allies 12007 | -6/Factory | Identified exit to Garrison 12027 | -6/Factory | Garrison activated, responded to threat 12119 | -6/Factory | Discovered new exit (range 17) 12253 | -6/Factory | Entered Garrison 12356 | -6/Garrison | Build established: Tank 12429 | -6/Garrison | Triggered checkpoint 12456 | -6/Garrison | Garrison Relay disabled 12593 | -6/Garrison | Triggered checkpoint 12676 | -6/Garrison | Expanded RIF knowledge: Signal Jamming 12694 | -6/Garrison | Garrison Relay disabled 12775 | -6/Garrison | Discovered new exit (range 12) 12885 | -6/Garrison | Triggered checkpoint 12903 | -6/Garrison | Discovered new exit (range 12) 12961 | -6/Garrison | Build established: Botlord-Tank 12975 | -6/Garrison | Triggered checkpoint 13044 | -6/Garrison | Garrison Relay disabled 13179 | -6/Garrison | Triggered checkpoint 13195 | -6/Garrison | Triggered checkpoint 13276 | -6/Garrison | Triggered checkpoint 13278 | -6/Garrison | Triggered checkpoint 13452 | -6/Garrison | Spotted Striker 13452 | -6/Garrison | Spotted Executioner 13484 | -6/Garrison | Core integrity fell below 50% 13516 | -6/Garrison | Released all parts (7) 13518 | -6/Garrison | Core integrity fell below 20% 13519 | -6/Garrison | Discovered new exit (range 14) 13527 | -6/Garrison | Entered Factory 13527 | -5/Factory | Evolved 2 slots: Utility x2 13547 | -5/Factory | Lost 7 parts (2n2u3w) 13807 | -5/Factory | Lost 4 parts (1p1n2u) 13810 | -5/Factory | Build established: Mutant 14127 | -5/Factory | First assault squad dispatched 14130 | -5/Factory | Found Hvy. Reflective Plating 14132 | -5/Factory | Found Hvy. Reflective Plating 14135 | -5/Factory | Found Hvy. Reflective Plating 14137 | -5/Factory | Found Hvy. Reflective Plating 14253 | -5/Factory | Build established: Scavenger-Gunner 14396 | -5/Factory | Identified exit to Garrison 14396 | -5/Factory | Entered Garrison 14497 | -5/Garrison | Expanded RIF knowledge: Patrol Navigation 14516 | -5/Garrison | Garrison Relay disabled 14582 | -5/Garrison | Garrison Relay disabled 14586 | -5/Garrison | Triggered checkpoint 14932 | -5/Garrison | Triggered checkpoint 14935 | -5/Garrison | Core integrity fell below 50% 15066 | -5/Garrison | Triggered checkpoint 15118 | -5/Garrison | Lost 8 allies 15212 | -5/Garrison | Triggered checkpoint 15232 | -5/Garrison | Build established: Botlord-Gunner 15304 | -5/Garrison | Triggered checkpoint 15317 | -5/Garrison | Garrison Relay disabled 15350 | -5/Garrison | Expanded RIF knowledge: Zone Cloak 15619 | -5/Garrison | Discovered new exit (range 10) 15772 | -5/Garrison | Found Relay Coupler [Proto] 15776 | -5/Garrison | Found Relay Coupler [Proto] 15779 | -5/Garrison | Found Relay Coupler [Proto] 15783 | -5/Garrison | Found Relay Coupler [Proto] 15910 | -5/Garrison | Triggered checkpoint 15944 | -5/Garrison | Garrison Relay disabled 16164 | -5/Garrison | Triggered checkpoint 16433 | -5/Garrison | Discovered new exit (range 10) 16492 | -5/Garrison | Triggered checkpoint 16551 | -5/Garrison | Garrison Relay disabled 16636 | -5/Garrison | Build established: Botlord-Mutant 16786 | -5/Garrison | Triggered checkpoint 16787 | -5/Garrison | Learned Factory security intel 16926 | -5/Garrison | Lost 3 parts (1n2u) 17107 | -5/Garrison | Garrison Relay disabled 17232 | -5/Garrison | Discovered new exit (range 11) 17306 | -5/Garrison | Entered Factory 17306 | -4/Factory | Evolved 2 slots: Propulsion x1, Utility x1 17618 | -4/Factory | Identified exit to Garrison 17692 | -4/Factory | Entered Garrison 17756 | -4/Garrison | Triggered checkpoint 17759 | -4/Garrison | Heavy support dispatched to Factory 17792 | -4/Garrison | Garrison Relay disabled 17796 | -4/Garrison | Heavy support dispatched to Factory 17842 | -4/Garrison | Garrison Relay disabled 17954 | -4/Garrison | Spotted B-86 Titan 18042 | -4/Garrison | Triggered checkpoint 18076 | -4/Garrison | Triggered checkpoint 18114 | -4/Garrison | Spotted B-86 Titan 18125 | -4/Garrison | Triggered checkpoint 18130 | -4/Garrison | Lost 9 allies 18150 | -4/Garrison | Destroyed B-86 Titan 18276 | -4/Garrison | Discovered new exit (range 14) 18425 | -4/Garrison | Learned Factory security intel 18448 | -4/Garrison | Triggered checkpoint 18470 | -4/Garrison | Found embedded Infiltrators 18538 | -4/Garrison | Triggered checkpoint 18566 | -4/Garrison | Garrison Relay disabled 18682 | -4/Garrison | Triggered checkpoint 18840 | -4/Garrison | Expanded RIF knowledge: Coupler Efficiency 18858 | -4/Garrison | Discovered new exit (range 5) 18884 | -4/Garrison | Triggered checkpoint 18909 | -4/Garrison | Garrison Relay disabled 18968 | -4/Garrison | Heavy support dispatched to Factory 19109 | -4/Garrison | Discovered new exit (range 10) 19149 | -4/Garrison | H-XX Assembler disabled 19266 | -4/Garrison | Triggered checkpoint 19268 | -4/Garrison | Spotted Striker 19368 | -4/Garrison | Garrison Relay disabled 19451 | -4/Garrison | Entered Factory 19451 | -4/Factory | Accompanied by 8 allies 19722 | -4/Factory | Unchained authorized (QV-33N) 19779 | -4/Factory | Lost 3 allies 19886 | -4/Factory | Discovered new exit (range 12) 19902 | -4/Factory | Identified exit to Garrison 19902 | -4/Factory | Entered Garrison 19902 | -4/Garrison | Accompanied by 3 allies 19956 | -4/Garrison | Expanded RIF knowledge: Threat Obfuscation 20056 | -4/Garrison | Triggered checkpoint 20206 | -4/Garrison | Garrison Relay disabled 20314 | -4/Garrison | Triggered checkpoint 20315 | -4/Garrison | Spotted B-86 Titan 20322 | -4/Garrison | Assimilated Titan 7a with formatsys_high 20362 | -4/Garrison | Triggered checkpoint 20409 | -4/Garrison | Lost 3 allies 20422 | -4/Garrison | Found Hvy. Reflective Plating 20440 | -4/Garrison | Triggered checkpoint 20537 | -4/Garrison | Lost 3 allies 20558 | -4/Garrison | Triggered checkpoint 20583 | -4/Garrison | Garrison Relay disabled 20728 | -4/Garrison | Triggered checkpoint 20735 | -4/Garrison | Garrison Relay disabled 20831 | -4/Garrison | Discovered new exit (range 9) 20847 | -4/Garrison | Spotted B-86 Titan 20847 | -4/Garrison | Spotted B-86 Titan 20867 | -4/Garrison | Allies destroyed B-86 Titan 20881 | -4/Garrison | Allies destroyed B-86 Titan 21103 | -4/Garrison | Found Unknown Device 21103 | -4/Garrison | Identified Adv. Force Booster 21126 | -4/Garrison | Found Unknown Launcher 21127 | -4/Garrison | Identified Gamma Bomb Array 21223 | -4/Garrison | Found Quantum Capacitor 21227 | -4/Garrison | Found Quantum Capacitor 21338 | -4/Garrison | Discovered new exit (range 11) 21378 | -4/Garrison | Triggered checkpoint 21479 | -4/Garrison | Garrison Relay disabled 21684 | -4/Garrison | Triggered checkpoint 21714 | -4/Garrison | Discovered new exit (range 12) 21794 | -4/Garrison | Garrison Relay disabled 22151 | -4/Garrison | Entered Research 22151 | -3/Research | Accompanied by 3 allies 22151 | -3/Research | Evolved 2 slots: Utility x2 22313 | -3/Research | Unchained authorized (QV-33N) 22401 | -3/Research | First assault squad dispatched 22530 | -3/Research | Identified exit to Garrison 22533 | -3/Research | Entered Garrison 22533 | -3/Garrison | Accompanied by 6 allies 22534 | -3/Garrison | Lost 3 allies 22695 | -3/Garrison | Spotted B-86 Titan 22748 | -3/Garrison | Lost 8 allies 22823 | -3/Garrison | Destroyed B-86 Titan 22853 | -3/Garrison | Triggered checkpoint 22973 | -3/Garrison | Expanded RIF knowledge: Program Shield 23039 | -3/Garrison | Garrison Relay disabled 23120 | -3/Garrison | Lost 5 allies 23461 | -3/Garrison | Triggered checkpoint 23467 | -3/Garrison | Build established: Botlord-Tank 23515 | -3/Garrison | Triggered checkpoint 23537 | -3/Garrison | Triggered checkpoint 23661 | -3/Garrison | Garrison Relay disabled 23747 | -3/Garrison | Discovered new exit (range 11) 23837 | -3/Garrison | Triggered checkpoint 24068 | -3/Garrison | Discovered new exit (range 13) 24199 | -3/Garrison | Expanded RIF knowledge: Autoassimilate 24237 | -3/Garrison | Triggered checkpoint 24276 | -3/Garrison | Garrison Relay disabled 24297 | -3/Garrison | Garrison Relay disabled 24624 | -3/Garrison | Entered Research 24624 | -3/Research | Accompanied by 7 allies 24811 | -3/Research | Spotted B-86 Titan 24833 | -3/Research | Allies destroyed B-86 Titan 24916 | -3/Research | Discovered new exit (range 15) 25083 | -3/Research | Lost 7 allies 25124 | -3/Research | First assault squad dispatched 25285 | -3/Research | Lost 10 allies 25961 | -3/Research | Build established: Botlord-Mutant 26163 | -3/Research | Garrison activated, responded to threat 26176 | -3/Research | Identified exit to Garrison 26176 | -3/Research | Entered Garrison 26198 | -3/Garrison | Lost 3 allies 26222 | -3/Garrison | Triggered checkpoint 26244 | -3/Garrison | Garrison Relay disabled 26356 | -3/Garrison | System corruption reached 10% 26384 | -3/Garrison | Spotted B-86 Titan 26407 | -3/Garrison | Core integrity fell below 50% 26443 | -3/Garrison | Core integrity fell below 20% 26460 | -3/Garrison | Discovered new exit (range 12) 26466 | -3/Garrison | Entered Research 26466 | -2/Research | Evolved 2 slots: Propulsion x2 26490 | -2/Research | Lost 22 parts (2p3n12u5w) 26748 | -2/Research | Spotted B-90 Cyclops 26773 | -2/Research | Spotted B-90 Cyclops 26780 | -2/Research | Found Prototype Processor 26780 | -2/Research | Identified Exp. Core Analyzer 26792 | -2/Research | Found Exp. Core Analyzer 26817 | -2/Research | Identified exit to Quarantine 26827 | -2/Research | Entered Quarantine 26868 | -2/Quarantine | Found Alien Reactor 26868 | -2/Quarantine | Identified Matter Drive 26895 | -2/Quarantine | Found Alien Artifact 26895 | -2/Quarantine | Identified Phase Redirector 26934 | -2/Quarantine | Found Prototype Processor 26934 | -2/Quarantine | Identified Exp. Signal Interpreter 26976 | -2/Quarantine | Spotted Alpha 7 26995 | -2/Quarantine | Found Alien Artifact 26995 | -2/Quarantine | Identified Core Reset Matrix 26995 | -2/Quarantine | Used Core Reset Matrix 26999 | -2/Quarantine | Detected hypermatrix surge 26999 | -2/Quarantine | Sensed 11 artifacts in vicinity 27008 | -2/Quarantine | Discovered new exit (range 12) 27027 | -2/Quarantine | Found Hpw. Transdimensional Reconstructor 27027 | -2/Quarantine | Warped through subspace 27028 | -2/Quarantine | Spotted Fortress 27039 | -2/Quarantine | Discovered new exit (range 6) 27039 | -2/Quarantine | Discovered new exit (range 6) 27040 | -2/Quarantine | Identified exit to Section 7 27040 | -2/Quarantine | Identified exit to Protoforge 27041 | -2/Quarantine | Entered Section 7 27042 | -2/Section 7 | Detected hypermatrix surge 27042 | -2/Section 7 | Sensed 25 artifacts in vicinity 27048 | -2/Section 7 | Spotted S7 Guard 27063 | -2/Section 7 | Found Core Membrane 27063 | -2/Section 7 | Installed Core Membrane, gained immunity to corruption 27101 | -2/Section 7 | Spotted S7 Guard 27136 | -2/Section 7 | Spotted B-90 Cyclops 27151 | -2/Section 7 | Spotted Executioner 27151 | -2/Section 7 | Spotted Executioner 27152 | -2/Section 7 | Core integrity fell below 50% 27163 | -2/Section 7 | Spotted B-99 Colossus 27174 | -2/Section 7 | Core integrity fell below 20% 27185 | -2/Section 7 | Destroyed by C-57 Dissector with Dual-blade Saw Last Messages --------------- Sealed Heavy Doors opened. 27151_ C-57 Dissector knocked back. 27151_ Knocked back. 27154_ Imp. Targeting Computer severed. 27154_ Penetrated by Slug. 27154_ Slug penetrates Thrusters. 27154_ Slug penetrates C-57 Dissector. 27155_ Penetrated by Slug. 27155_ Diametric Drive destroyed. 27157_ Penetrated by Slug. 27157_ Exp. Signal Interpreter destroyed. 27161_ Imp. Melee Analysis Suite severed. 27162_ System corrupted: Matter fused (-10). 27164_ Imp. Targeting Computer severed. 27165_ Nanosword severed. 27172_ Exp. Core Analyzer severed. 27173_ B-99 Colossus springs to life. 27175_ Machine disabled. 27175_ Knocked back. 27175_ Penetrated by Slug. Map ----- +----------------------------------------------------+ | ???????????????????????????????????????????? | | ???????????????????????????????????????????? | | ???????????????????????????????????????????? | | ???????????????????????????????????????????? | | """"?????????????????????????????????????????? | | "?????????????????????????????????????????? | | "?????????????????????????????????????????? | | ""?????????????????????????????????????????? | | "?????????????????????????????????????????? | | "?????????????????????????????????????????? | | " " " "" ?????????????????????????????? | | ????????????????????????????? | | ????????????????????????????? | | ???????????????????????????? | | """"""" ????????????????????????????? | | ??????" ??????????????? ?????????????? | | """"""" ""????????????? ??????????????? | | """"""""""""" ???????????????? | | " ???? "??????????? | | " "??????????? | | " ??????????? | | """ ?????????? | | " ?????????? | | % ????????? | | ????????? | | c c c@ ????????? | | ????????? | | """"""""" " """"""""" ????????? | | ##"""""""""""""""""""""""""""""" ### ?????????? | | ?#""""""""""""""""""""""""""""""""""#????????????? | | ?################################????????????????? | | ?????????????????????????????????????????????????? | | ?????????????????????????????????????????????????? | | ?????????????????????????????????????????????????? | | ?????????????????????????????????????????????????? | | ?????????????????????????????????????????????????? | | ?????????????????????????????????????????????????? | | ?????????????????????????????????????????????????? | | ?????????????????????????????????????????????????? | | ?????????????????????????????????????????????????? | | ?????????????????????????????????????????????????? | | ?????????????????????????????????????????????????? | | ?????????????????????????????????????????????????? | | ?????????????????????????????????????????????????? | | ?????????????????????????????????????????????????? | | ??????????????!??????????????????????????????????? | | ?????????????????????????????????????????????????? | | ?????????????????????????????????????????????????? | | ?????????????????????????????????????????????????? | | ?????????????????????????????????????????????????? | +----------------------------------------------------+ Best States ------------- Heat Dissipation 65 Coolant Potential 65 Energy Generation 31 Energy Capacity 350 Matter Stores 300 Matter Capacity 300 Sight Range 16 Robot Scan Range 16 Terrain Scan Density 10 ECM Strength 2 Jamming Range 12 Cloak Strength 2 Power Amplification 30 Armor Coverage 1800 Resistance: KI 30 Resistance: TH 25 Resistance: EM 15 Power Shielding 66 Utility Shielding 66 Point Defense Rating 240 Weapon Cycling 20 Melee Speed Boost 40 Phase Shifting 15 Evasion (%) 67 Targeting Accuracy 18 Melee Accuracy 6 Core Analysis 8 Recoil Reduction 4 Kinecelleration 40 Offensive Hacking 10 Defensive Hacking 10 Relay Coupler Types 8 Relay Coupler Value 347 Item Schematics ----------------- None Robot Schematics ------------------ None Fabricated ------------ Nothing Repaired ---------- Nothing Studied --------- None Alien Tech Used ----------------- Matter Drive Phase Redirector Core Reset Matrix High-powered Transdimensional Reconstructor Core Membrane Achievements -------------- Cya! Oppo Buddy The Better Part Of Valor Watcher Gambling Zeroed Repercussions Challenges ------------ None Game ------ Seed RagnarokSiegeFlail Manual? 0 Play Time 04:22:34 Cumulative 128.4 hours Start 2025.11.27 @ 15:46:02 End 2025.11.28 @ 23:46:16 Sessions 9 Manual Loads 0 Difficulty Rogue Special Mode None Game No. 104 Rogue 104 Adventurer 0 Explorer 0 Win Type - Total 1 Types 1/0/0/0/0/0/0/0/0/0 Lore% 61 Gallery% 64 Achievement% 51 Wizard Run 0 Options --------- Layout 1 ASCII 0 Keyboard 1 Movement Vi Keybinds 0 Fullscreen 1 Font 24/Terminus Map View 50x35 Zoom Use 0% Tactical HUD 1 Map Filters NONE Filters NONE Steam 1 RUN: d719382b-dfe3-4482-8e7a-17033ffdf9d5